fUST/lending_fUST_20240218
["ID","MTS","AMOUNT","RATE_DAILY","PERIOD"]
[314355200,1708223444249,-198.853853,0.00027671,2]
[314355201,1708223444258,-198.853853,0.00027671,2]
[314355202,1708223444268,-198.853853,0.00027671,2]
[314355203,1708223444277,-501.59764834,0.00027671,2]
[314355204,1708223444288,-500.0,0.00027671,2]
[314355205,1708223444297,-500.0,0.00027671,2]
[314355206,1708223444306,-500.0,0.00027671,2]
[314355207,1708223444316,-495.9769523,0.00027671,2]
[314355208,1708223444325,-505.04956163,0.00027671,2]
[314355209,1708223444334,-428.00245238,0.00027671,2]
[314355210,1708223444344,-1000.0,0.00027671,2]
[314355211,1708223444354,-165.186314,0.00027671,2]
[314355212,1708223444363,-500.0,0.00027671,2]
[314355213,1708223444373,-500.0,0.00027671,2]
[314355214,1708223444382,-500.0,0.00027671,2]
[314355215,1708223444391,-500.0,0.00027671,2]
[314355216,1708223444401,-1000.0,0.00027671,2]
[314355217,1708223444410,-500.94865185,0.00027671,2]
[314355218,1708223444419,-500.0,0.00027671,2]
[314355219,1708223444428,-500.0,0.00027671,2]
[314355220,1708223444437,-500.0,0.00027671,2]
[314355221,1708223444447,-500.0,0.00027671,2]
[314355222,1708223444456,-505.62685873,0.00027671,2]
[314355223,1708223444466,-502.47463071,0.00027671,2]
[314355224,1708223444475,-500.0,0.00027671,2]
[314355225,1708223444485,-1543.34,0.00027671,2]
[314355226,1708223444494,-594.8832422,0.00027671,2]
[314355227,1708223444503,-500.0,0.00027671,2]
[314355228,1708223444512,-500.0,0.00027671,2]
[314355229,1708223444521,-249.0708358,0.00027671,2]
[314355230,1708223444531,-500.0,0.00027671,2]
[314355231,1708223444540,-500.0,0.00027671,2]
[314355232,1708223444549,-500.0,0.00027671,2]
[314355233,1708223444559,-500.0,0.00027671,2]
[314355234,1708223444570,-500.0,0.00027671,2]
[314355235,1708223444638,-500.0,0.00027671,2]
[314355236,1708223444649,-500.0,0.00027671,2]
[314355237,1708223444658,-500.0,0.00027671,2]
[314355238,1708223444667,-337.170642,0.00027671,2]
[314355239,1708223444676,-500.0,0.00027671,2]
[314355240,1708223444685,-337.170642,0.00027671,2]
[314355241,1708223444694,-500.0,0.00027671,2]
[314355242,1708223444704,-500.0,0.00027671,2]
[314355243,1708223444713,-500.0,0.00027671,2]
[314355244,1708223444722,-515.18795595,0.00027671,2]
[314355245,1708223444730,-500.0,0.00027671,2]
[314355246,1708223444740,-500.0,0.00027671,2]
[314355247,1708223444748,-500.0,0.00027671,2]
[314355248,1708223444757,-500.0,0.00027671,2]
[314355249,1708223444766,-500.0,0.00027671,2]
[314355250,1708223444775,-500.0,0.00027671,2]
[314355251,1708223444784,-501.12426514,0.00027671,2]
[314355252,1708223444793,-500.0,0.00027671,2]
[314355253,1708223444802,-624.98668016,0.00027671,2]
[314355254,1708223444810,-500.0,0.00027671,2]
[314355255,1708223444819,-500.0,0.00027671,2]
[314355256,1708223444828,-500.0,0.00027671,2]
[314355257,1708223444837,-500.0,0.00027671,2]
[314355258,1708223444847,-500.0,0.00027671,2]
[314355259,1708223444856,-500.0,0.00027671,2]
[314355260,1708223444865,-500.0,0.00027671,2]
[314355261,1708223444874,-500.0,0.00027671,2]
[314355262,1708223444884,-500.0,0.00027671,2]
[314355263,1708223444893,-525.71598747,0.00027671,2]
[314355264,1708223444902,-500.0,0.00027671,2]
[314355265,1708223444911,-500.0,0.00027671,2]
[314355266,1708223444920,-500.0,0.00027671,2]
[314355267,1708223444929,-534.49079148,0.00027671,2]
[314355268,1708223444939,-1215.45,0.00027671,2]
[314355269,1708223444948,-500.0,0.00027671,2]
[314355270,1708223444958,-500.0,0.00027671,2]
[314355271,1708223444967,-500.0,0.00027671,2]
[314355272,1708223444977,-500.0,0.00027671,2]
[314355273,1708223444987,-1271.22,0.00027671,2]
[314355274,1708223444996,-503.59705263,0.00027671,2]
[314355275,1708223445005,-500.0,0.00027671,2]
[314355276,1708223445014,-501.97174574,0.00027671,2]
[314355277,1708223445022,-500.0,0.00027671,2]
[314355278,1708223445031,-500.0,0.00027671,2]
[314355279,1708223445040,-506.33695371,0.00027671,2]
[314355280,1708223445050,-500.0,0.00027671,2]
[314355281,1708223445058,-506.50776374,0.00027671,2]
[314355282,1708223445067,-505.68917175,0.00027671,2]
[314355283,1708223445076,-500.0,0.00027671,2]
[314355284,1708223445085,-996.9,0.00027671,2]
[314355285,1708223445094,-500.0,0.00027671,2]
[314355286,1708223445103,-500.0,0.00027671,2]
[314355287,1708223445112,-868.19,0.00027671,2]
[314355288,1708223445122,-502.71973002,0.00027671,2]
[314355289,1708223445132,-776.77,0.00027671,2]
[314355290,1708223445141,-495.88183261,0.00027671,2]
[314355291,1708223445151,-597.7381409,0.00027671,2]
[314355292,1708223445159,-500.0,0.00027671,2]
[314355293,1708223445169,-1426.942396,0.00027671,2]
[314355294,1708223445177,-1426.942396,0.00027671,2]
[314355295,1708223445186,-501.72780827,0.00027671,2]
[314355296,1708223445195,-500.0,0.00027671,2]
[314355297,1708223445203,-1426.942396,0.00027671,2]
[314355298,1708223445213,-1426.942396,0.00027671,2]
[314355299,1708223445221,-500.0,0.00027671,2]
[314355300,1708223445230,-503.2861891,0.00027671,2]
[314355301,1708223445239,-500.0,0.00027671,2]
[314355302,1708223445248,-410.48671411,0.00027671,2]
[314355303,1708223445257,-500.0,0.00027671,2]
[314355304,1708223445266,-9442.42,0.00027671,2]
[314355305,1708223445276,-500.0,0.00027671,2]
[314355306,1708223445285,-500.0,0.00027671,2]
[314355307,1708223445294,-192.620399,0.00027671,2]
[314355308,1708223445304,-192.620399,0.00027671,2]
[314355309,1708223445314,-500.0,0.00027671,2]
[314355310,1708223445323,-500.0,0.00027671,2]
[314355311,1708223445333,-500.0,0.00027671,2]
[314355312,1708223445342,-192.620399,0.00027671,2]
[314355313,1708223445351,-500.0,0.00027671,2]
[314355314,1708223445361,-500.0,0.00027671,2]
[314355315,1708223445370,-192.620399,0.00027671,2]
[314355316,1708223445380,-500.0,0.00027671,2]
[314355317,1708223445389,-500.0,0.00027671,2]
[314355318,1708223445398,-500.0,0.00027671,2]
[314355319,1708223445407,-1185.42,0.00027671,2]
[314355320,1708223445416,-501.71527144,0.00027671,2]
[314355321,1708223445425,-500.0,0.00027671,2]
[314355322,1708223445435,-500.0,0.00027671,2]
[314355323,1708223445444,-505.99739113,0.00027671,2]
[314355324,1708223445454,-500.0,0.00027671,2]
[314355325,1708223445463,-500.0,0.00027671,2]
[314355326,1708223445473,-500.0,0.00027671,2]
[314355327,1708223445483,-500.0,0.00027671,2]
[314355328,1708223445493,-500.0,0.00027671,2]
[314355329,1708223445502,-500.0,0.00027671,2]
[314355330,1708223445511,-500.0,0.00027671,2]
[314355331,1708223445521,-500.0,0.00027671,2]
[314355332,1708223445530,-308.65394896,0.00027671,2]
[314355333,1708223445539,-500.0,0.00027671,2]
[314355334,1708223445548,-500.0,0.00027671,2]
[314355335,1708223445557,-500.0,0.00027671,2]
[314355336,1708223445569,-500.0,0.00027671,2]
[314355337,1708223445579,-500.0,0.00027671,2]
[314355338,1708223445588,-500.0,0.00027671,2]
[314355339,1708223445597,-629.46,0.00027671,2]
[314355340,1708223445606,-509.41292216,0.00027671,2]
[314355341,1708223445617,-500.0,0.00027671,2]
[314355342,1708223445627,-1209.270603,0.00027671,2]
[314355343,1708223445636,-1209.270603,0.00027671,2]
[314355344,1708223445646,-500.0,0.00027671,2]
[314355345,1708223445655,-1209.270603,0.00027671,2]
[314355346,1708223445664,-9343.35,0.00027671,2]
[314355347,1708223445673,-1209.270603,0.00027671,2]
[314355348,1708223445684,-500.0,0.00027671,2]
[314355349,1708223445693,-500.0,0.00027671,2]
[314355350,1708223445704,-1695.47,0.00027671,2]
[314355351,1708223445714,-500.0,0.00027671,2]
[314355352,1708223445724,-511.23856651,0.00027671,2]
[314355353,1708223445733,-1386.93,0.00027671,2]
[314355354,1708223445742,-500.0,0.00027671,2]
[314355355,1708223445751,-500.0,0.00027671,2]
[314355356,1708223445759,-553.69329164,0.00027671,2]
[314355357,1708223445768,-500.0,0.00027671,2]
[314355358,1708223445777,-500.0,0.00027671,2]
[314355359,1708223445786,-5163.72,0.00027671,2]
[314355360,1708223445796,-503.9044214,0.00027671,2]
[314355361,1708223445805,-500.0,0.00027671,2]
[314355362,1708223445814,-500.0,0.00027671,2]
[314355363,1708223445822,-500.0,0.00027671,2]
[314355364,1708223445831,-500.0,0.00027671,2]
[314355365,1708223445841,-500.0,0.00027671,2]
[314355366,1708223445850,-5787.97,0.00027671,2]
[314355367,1708223445916,-520.39446348,0.00027671,2]
[314355368,1708223445925,-216.7842254,0.00027671,2]
[314355369,1708223445934,-500.0,0.00027671,2]
[314355370,1708223445943,-8332.7,0.00027671,2]
[314355371,1708223445952,-500.0,0.00027671,2]
[314355372,1708223445961,-1817.14,0.00027671,2]
[314355373,1708223445973,-500.0,0.00027671,2]
[314355374,1708223445983,-961.59,0.00027671,2]
[314355375,1708223445991,-520.34390093,0.00027671,2]
[314355376,1708223446001,-580.42,0.00027671,2]
[314355378,1708223446010,-506.15577576,0.00027671,2]
[314355380,1708223446019,-1817.39,0.00027671,2]
[314355382,1708223446029,-504.40190159,0.00027671,2]
[314355384,1708223446038,-5486.38,0.00027671,2]
[314355386,1708223446046,-551.6492654,0.00027671,2]
[314355388,1708223446055,-509.54673523,0.00027671,2]
[314355390,1708223446064,-602.96091265,0.00027671,2]
[314355392,1708223446074,-507.28290396,0.00027671,2]
[314355393,1708223446083,-151.0,0.00027671,2]
[314355394,1708223446092,-151.0,0.00027671,2]
[314355395,1708223446101,-500.0,0.00027671,2]
[314355396,1708223446111,-500.0,0.00027671,2]
[314355398,1708223446120,-722.84,0.00027671,2]
[314355400,1708223446129,-880.0,0.00027671,2]
[314355401,1708223446138,-1027.66,0.00027671,2]
[314355402,1708223446147,-500.0,0.00027671,2]
[314355403,1708223446156,-500.0,0.00027671,2]
[314355404,1708223446165,-500.0,0.00027671,2]
[314355405,1708223446174,-626.26,0.00027671,2]
[314355406,1708223446184,-500.0,0.00027671,2]
[314355407,1708223446193,-1106.64,0.00027671,2]
[314355408,1708223446202,-1514.87,0.00027671,2]
[314355409,1708223446211,-500.0,0.00027671,2]
[314355410,1708223446220,-500.0,0.00027671,2]
[314355411,1708223446229,-500.0,0.00027671,2]
[314355412,1708223446239,-1577.75,0.00027671,2]
[314355413,1708223446248,-340.10499689,0.00027671,2]
[314355414,1708223446257,-156.557833,0.00027671,2]
[314355415,1708223446267,-6034.04,0.00027671,2]
[314355416,1708223446276,-300.0,0.00027735,2]
[314355417,1708223446285,-922.49682568,0.00027799,2]
[314355418,1708223446294,-337.170642,0.00027808,2]
[314355419,1708223446303,-337.170642,0.00027808,2]
[314355420,1708223446312,-500.0,0.00027808,2]
[314355421,1708223446322,-1209.270603,0.00027845,2]
[314355423,1708223446331,-1209.270603,0.00027845,2]
[314355424,1708223446340,-151.0,0.00027845,2]
[314355426,1708223446349,-198.853853,0.00027881,2]
[314355427,1708223446361,-198.853853,0.00027881,2]
[314355429,1708223446370,-820.01,0.00027881,2]
[314355430,1708223446380,-500.0,0.00027881,2]
[314355432,1708223446389,-19473.89830016,0.00027881,5]
[314355434,1708223446400,-160.69745473,0.00027944,10]
[314355435,1708223446409,-1516.69399884,0.00027944,2]
[314355436,1708223446419,-820.01,0.00027944,2]
[314355437,1708223446428,-820.01,0.00027944,2]
[314355438,1708223446438,-500.0,0.00027944,2]
[314355439,1708223446447,-500.0,0.00027944,2]
[314355440,1708223446456,-212.91296406,0.00027945,2]
[314355441,1708223446466,-500.0,0.00027945,2]
[314355442,1708223446475,-496.84283628,0.00027945,2]
[314355443,1708223446485,-500.0,0.00027945,2]
[314355444,1708223446494,-163.43020933,0.00027945,2]
[314355445,1708223446503,-515.16,0.00027945,2]
[314355446,1708223446512,-512.49386522,0.00027945,2]
[314355447,1708223446522,-500.0,0.00027945,2]
[314355448,1708223446531,-500.0,0.00027945,2]
[314355449,1708223446541,-512.71412566,0.00027945,2]
[314355450,1708223446551,-500.0,0.00027945,2]
[314355451,1708223446560,-520.32319345,0.00027945,2]
[314355452,1708223446572,-500.0,0.00027945,2]
[314355453,1708223446582,-500.0,0.00027945,2]
[314355454,1708223446591,-500.0,0.00027945,2]
[314355455,1708223446601,-500.0,0.00027945,2]
[314355456,1708223446612,-500.0,0.00027945,2]
[314355457,1708223446622,-500.0,0.00027945,2]
[314355458,1708223446631,-500.0,0.00027945,2]
[314355459,1708223446641,-500.0,0.00027945,2]
[314355460,1708223446651,-500.0,0.00027945,2]
[314355461,1708223446661,-500.0,0.00027945,2]
[314355462,1708223446671,-500.0,0.00027945,2]
[314355463,1708223446682,-514.07343172,0.00027945,2]
[314355464,1708223446692,-500.0,0.00027945,2]
[314355465,1708223446702,-660.72,0.00027945,2]
[314355466,1708223446712,-500.0,0.00027945,2]
[314355467,1708223446723,-500.0,0.00027945,2]
[314355468,1708223446733,-198.853853,0.00027945,2]
[314355469,1708223446742,-198.853853,0.00027945,2]
[314355470,1708223446752,-500.0,0.00027945,2]
[314355471,1708223446761,-500.0,0.00027945,2]
[314355472,1708223446770,-541.53246744,0.00027945,2]
[314355473,1708223446779,-1000.0,0.00027945,2]
[314355474,1708223446789,-500.61743273,0.00027945,2]
[314355475,1708223446798,-500.0,0.00027945,2]
[314355476,1708223446808,-500.0,0.00027945,2]
[314355477,1708223446817,-500.0,0.00027945,2]
[314355478,1708223446827,-1002.90306613,0.00027945,2]
[314355479,1708223446837,-507.78060807,0.00027945,2]
[314355480,1708223446846,-500.0,0.00027945,2]
[314355481,1708223446856,-500.0,0.00027945,2]
[314355482,1708223446865,-501.90607251,0.00027945,2]
[314355483,1708223446876,-500.0,0.00027945,2]
[314355484,1708223446886,-1543.34,0.00027945,2]
[314355485,1708223446895,-500.0,0.00027945,2]
[314355486,1708223446905,-500.0,0.00027945,2]
[314355487,1708223446915,-157.06201071,0.00027945,2]
[314355488,1708223446925,-507.01002875,0.00027945,2]
[314355489,1708223446934,-500.0,0.00027945,2]
[314355490,1708223446943,-512.34524516,0.00027945,2]
[314355491,1708223446953,-500.0,0.00027945,2]
[314355492,1708223446961,-517.93861432,0.00027945,2]
[314355493,1708223446972,-508.06060873,0.00027945,2]
[314355494,1708223446983,-502.89317571,0.00027945,2]
[314355495,1708223446993,-337.170642,0.00027945,2]
[314355496,1708223447003,-337.170642,0.00027945,2]
[314355497,1708223447012,-500.0,0.00027945,2]
[314355498,1708223447021,-337.170642,0.00027945,2]
[314355499,1708223447033,-337.170642,0.00027945,2]
[314355500,1708223447043,-500.0,0.00027945,2]
[314355501,1708223447053,-500.0,0.00027945,2]
[314355502,1708223447117,-500.0,0.00027945,2]
[314355503,1708223447126,-500.0,0.00027945,2]
[314355504,1708223447135,-500.0,0.00027945,2]
[314355505,1708223447144,-508.07888742,0.00027945,2]
[314355506,1708223447154,-521.72700943,0.00027945,2]
[314355507,1708223447162,-500.0,0.00027945,2]
[314355508,1708223447172,-500.0,0.00027945,2]
[314355509,1708223447181,-500.0,0.00027945,2]
[314355510,1708223447190,-500.0,0.00027945,2]
[314355511,1708223447199,-517.68061686,0.00027945,2]
[314355512,1708223447208,-204.80445097,0.00027945,2]
[314355513,1708223447218,-500.0,0.00027945,2]
[314355514,1708223447227,-500.0,0.00027945,2]
[314355515,1708223447236,-521.4560905,0.00027945,2]
[314355516,1708223447245,-500.0,0.00027945,2]
[314355517,1708223447254,-500.0,0.00027945,2]
[314355518,1708223447263,-507.92603343,0.00027945,2]
[314355519,1708223447274,-509.86317656,0.00027945,2]
[314355520,1708223447283,-500.0,0.00027945,2]
[314355521,1708223447292,-191.30493069,0.00027945,2]
[314355522,1708223447302,-1215.45,0.00027945,2]
[314355523,1708223447311,-500.0,0.00027945,2]
[314355524,1708223447320,-500.0,0.00027945,2]
[314355525,1708223447330,-500.0,0.00027945,2]
[314355526,1708223447339,-510.99998083,0.00027945,2]
[314355527,1708223447348,-1271.22,0.00027945,2]
[314355528,1708223447359,-500.0,0.00027945,2]
[314355529,1708223447368,-500.0,0.00027945,2]
[314355530,1708223447377,-500.0,0.00027945,2]
[314355531,1708223447387,-500.0,0.00027945,2]
[314355532,1708223447396,-500.0,0.00027945,2]
[314355533,1708223447405,-996.9,0.00027945,2]
[314355534,1708223447415,-500.0,0.00027945,2]
[314355535,1708223447424,-500.0,0.00027945,2]
[314355536,1708223447434,-868.19,0.00027945,2]
[314355537,1708223447444,-776.77,0.00027945,2]
[314355538,1708223447453,-500.0,0.00027945,2]
[314355539,1708223447462,-1426.942396,0.00027945,2]
[314355540,1708223447471,-1426.942396,0.00027945,2]
[314355541,1708223447481,-500.0,0.00027945,2]
[314355542,1708223447490,-1426.942396,0.00027945,2]
[314355543,1708223447499,-1426.942396,0.00027945,2]
[314355544,1708223447508,-502.37187934,0.00027945,2]
[314355545,1708223447517,-504.33605534,0.00027945,2]
[314355546,1708223447526,-500.0,0.00027945,2]
[314355547,1708223447535,-9442.42,0.00027945,2]
[314355548,1708223447543,-500.0,0.00027945,2]
[314355549,1708223447553,-505.38198644,0.00027945,2]
[314355550,1708223447562,-192.620399,0.00027945,2]
[314355551,1708223447574,-503.71545766,0.00027945,2]
[314355552,1708223447583,-192.620399,0.00027945,2]
[314355553,1708223447593,-500.0,0.00027945,2]
[314355554,1708223447602,-500.0,0.00027945,2]
[314355555,1708223447614,-500.0,0.00027945,2]
[314355556,1708223447623,-500.0,0.00027945,2]
[314355557,1708223447633,-192.620399,0.00027945,2]
[314355558,1708223447644,-192.620399,0.00027945,2]
[314355559,1708223447652,-507.62813761,0.00027945,2]
[314355560,1708223447661,-500.0,0.00027945,2]
[314355561,1708223447670,-500.0457223,0.00027945,2]
[314355562,1708223447679,-1185.42,0.00027945,2]
[314355563,1708223447688,-500.0,0.00027945,2]
[314355564,1708223447698,-500.0,0.00027945,2]
[314355565,1708223447707,-387.98881669,0.00027945,2]
[314355566,1708223447716,-500.0,0.00027945,2]
[314355567,1708223447725,-511.88321804,0.00027945,2]
[314355568,1708223447734,-486.76918208,0.00027945,2]
[314355569,1708223447742,-500.0,0.00027945,2]
[314355570,1708223447752,-500.0,0.00027945,2]
[314355571,1708223447760,-500.0,0.00027945,2]
[314355572,1708223447769,-500.0,0.00027945,2]
[314355573,1708223447778,-500.0,0.00027945,2]
[314355574,1708223447787,-500.0,0.00027945,2]
[314355575,1708223447796,-418.30821685,0.00027945,2]
[314355576,1708223447805,-500.0,0.00027945,2]
[314355577,1708223447814,-637.8514627,0.00027945,2]
[314355578,1708223447823,-500.0,0.00027945,2]
[314355579,1708223447832,-629.46,0.00027945,2]
[314355580,1708223447841,-520.99156622,0.00027945,2]
[314355581,1708223447850,-1209.270603,0.00027945,2]
[314355582,1708223447860,-1209.270603,0.00027945,2]
[314355583,1708223447869,-346.67742898,0.00027945,2]
[314355584,1708223447877,-9343.35,0.00027945,2]
[314355585,1708223447886,-1209.270603,0.00027945,2]
[314355586,1708223447896,-1209.270603,0.00027945,2]
[314355587,1708223447905,-500.0,0.00027945,2]
[314355588,1708223447915,-562.18416376,0.00027945,2]
[314355589,1708223447924,-1695.47,0.00027945,2]
[314355590,1708223447934,-340.4014717,0.00027945,2]
[314355591,1708223447943,-1386.93,0.00027945,2]
[314355592,1708223447953,-238.4200756,0.00027945,2]
[314355593,1708223447963,-500.0,0.00027945,2]
[314355594,1708223447973,-500.0,0.00027945,2]
[314355595,1708223447982,-500.0,0.00027945,2]
[314355596,1708223447992,-5163.72,0.00027945,2]
[314355597,1708223448001,-503.61305741,0.00027945,2]
[314355598,1708223448010,-500.0,0.00027945,2]
[314355599,1708223448020,-500.0,0.00027945,2]
[314355600,1708223448030,-500.0,0.00027945,2]
[314355601,1708223448039,-227.9238685,0.00027945,2]
[314355602,1708223448050,-5787.97,0.00027945,2]
[314355603,1708223448061,-500.0,0.00027945,2]
[314355604,1708223448070,-8332.7,0.00027945,2]
[314355605,1708223448079,-500.0,0.00027945,2]
[314355606,1708223448088,-1817.14,0.00027945,2]
[314355607,1708223448098,-500.0,0.00027945,2]
[314355608,1708223448109,-961.59,0.00027945,2]
[314355609,1708223448120,-580.42,0.00027945,2]
[314355610,1708223448130,-1817.39,0.00027945,2]
[314355611,1708223448139,-5486.38,0.00027945,2]
[314355612,1708223448150,-151.0,0.00027945,2]
[314355613,1708223448207,-176.78903,0.00027945,2]
[314355614,1708223448222,-500.0,0.00027945,2]
[314355615,1708223448231,-500.0,0.00027945,2]
[314355616,1708223448240,-722.84,0.00027945,2]
[314355617,1708223448252,-880.0,0.00027945,2]
[314355618,1708223448262,-1027.66,0.00027945,2]
[314355619,1708223448272,-500.0,0.00027945,2]
[314355620,1708223448281,-517.40961956,0.00027945,2]
[314355621,1708223448290,-500.0,0.00027945,2]
[314355622,1708223448299,-626.26,0.00027945,2]
[314355623,1708223448309,-1106.64,0.00027945,2]
[314355624,1708223448318,-1514.87,0.00027945,2]
[314355625,1708223448327,-500.0,0.00027945,2]
[314355626,1708223448336,-500.0,0.00027945,2]
[314355627,1708223448346,-500.0,0.00027945,2]
[314355628,1708223448355,-1577.75,0.00027945,2]
[314355629,1708223448365,-6034.04,0.00027945,2]
[314355630,1708223448374,-200.3472215,0.00027945,2]
[314355631,1708223448383,-153.0,0.00027945,2]
[314355632,1708223448392,-155.01860223,0.00028,2]
[314355633,1708223448402,-300.0,0.00028073,2]
[314355634,1708223448411,-511.57419394,0.00028082,2]
[314355635,1708223448421,-5078.54809576,0.00028149,5]
[314355636,1708223448430,-820.01,0.00028218,2]
[314355637,1708223448439,-820.01,0.00028218,2]
[314355638,1708223448449,-500.0,0.00028218,2]
[314355639,1708223448458,-500.0,0.00028218,2]
[314355640,1708223448469,-151.0,0.00028219,2]
[314355641,1708223448478,-500.0,0.00028219,2]
[314355642,1708223448487,-515.16,0.00028219,2]
[314355643,1708223448497,-500.0,0.00028219,2]
[314355644,1708223448506,-500.0,0.00028219,2]
[314355645,1708223448515,-522.62383737,0.00028219,2]
[314355646,1708223448524,-500.0,0.00028219,2]
[314355647,1708223448533,-500.0,0.00028219,2]
[314355648,1708223448543,-500.0,0.00028219,2]
[314355649,1708223448552,-500.0,0.00028219,2]
[314355650,1708223448563,-513.05035135,0.00028219,2]
[314355651,1708223448573,-500.0,0.00028219,2]
[314355652,1708223448583,-500.0,0.00028219,2]
[314355653,1708223448593,-500.0,0.00028219,2]
[314355654,1708223448603,-500.0,0.00028219,2]
[314355655,1708223448614,-500.0,0.00028219,2]
[314355656,1708223448623,-500.0,0.00028219,2]
[314355657,1708223448632,-500.0,0.00028219,2]
[314355658,1708223448641,-660.72,0.00028219,2]
[314355659,1708223448652,-500.0,0.00028219,2]
[314355660,1708223448661,-500.0,0.00028219,2]
[314355661,1708223448670,-198.853853,0.00028219,2]
[314355662,1708223448679,-198.853853,0.00028219,2]
[314355663,1708223448688,-198.853853,0.00028219,2]
[314355664,1708223448697,-500.0,0.00028219,2]
[314355665,1708223448706,-198.853853,0.00028219,2]
[314355666,1708223448715,-500.0,0.00028219,2]
[314355667,1708223448724,-1000.0,0.00028219,2]
[314355668,1708223448733,-500.0,0.00028219,2]
[314355669,1708223448742,-549.88417661,0.00028219,2]
[314355670,1708223448751,-500.0,0.00028219,2]
[314355671,1708223448760,-268.66980456,0.00028219,2]
[314355672,1708223448769,-502.51346182,0.00028219,2]
[314355673,1708223448779,-500.0,0.00028219,2]
[314355674,1708223448788,-1543.34,0.00028219,2]
[314355675,1708223448797,-500.0,0.00028219,2]
[314355676,1708223448806,-500.0,0.00028219,2]
[314355677,1708223448815,-500.0,0.00028219,2]
[314355678,1708223448824,-500.0,0.00028219,2]
[314355679,1708223448833,-337.170642,0.00028219,2]
[314355680,1708223448842,-500.0,0.00028219,2]
[314355681,1708223448851,-337.170642,0.00028219,2]
[314355682,1708223448860,-500.0,0.00028219,2]
[314355683,1708223448869,-500.0,0.00028219,2]
[314355684,1708223448878,-500.0,0.00028219,2]
[314355685,1708223448886,-548.18724375,0.00028219,2]
[314355686,1708223448896,-500.0,0.00028219,2]
[314355687,1708223448905,-502.66995576,0.00028219,2]
[314355688,1708223448913,-468.06481194,0.00028219,2]
[314355689,1708223448922,-500.0,0.00028219,2]
[314355690,1708223448931,-500.0,0.00028219,2]
[314355691,1708223448940,-504.85822056,0.00028219,2]
[314355692,1708223448948,-500.0,0.00028219,2]
[314355693,1708223448957,-500.0,0.00028219,2]
[314355694,1708223448966,-228.76996264,0.00028219,2]
[314355695,1708223448975,-500.0,0.00028219,2]
[314355696,1708223448984,-1215.45,0.00028219,2]
[314355697,1708223448993,-500.0,0.00028219,2]
[314355698,1708223449002,-500.0,0.00028219,2]
[314355699,1708223449011,-500.0,0.00028219,2]
[314355700,1708223449020,-1271.22,0.00028219,2]
[314355701,1708223449030,-548.93594798,0.00028219,2]
[314355702,1708223449039,-410.83687271,0.00028219,2]
[314355703,1708223449049,-500.0,0.00028219,2]
[314355704,1708223449060,-500.0,0.00028219,2]
[314355705,1708223449069,-500.0,0.00028219,2]
[314355706,1708223449113,-996.9,0.00028219,2]
[314355707,1708223449122,-500.0,0.00028219,2]
[314355708,1708223449131,-506.44706237,0.00028219,2]
[314355709,1708223449141,-868.19,0.00028219,2]
[314355710,1708223449149,-776.77,0.00028219,2]
[314355711,1708223449158,-500.0,0.00028219,2]
[314355712,1708223449167,-1426.942396,0.00028219,2]
[314355713,1708223449176,-1426.942396,0.00028219,2]
[314355714,1708223449186,-500.0,0.00028219,2]